Cogmind - Beta 11.1 *** ADVENTURER MODE // 2022.12.01 @ 23:14:09 Player: Kek Result: Destroyed by D-53 Grenadier with Mini Grenade Launcher Performance ------------- Evolutions (0) 0 Regions Visited (2) 400 Robots Destroyed (13) 65 Value Destroyed (354) 354 Prototype IDs (0) 0 Alien Tech Used (0) 0 Bonus (0) 0 TOTAL SCORE: 819 Bonus ------- None Cogmind --------- Core Integrity 0/250 Matter 217/300 Energy 116/250 System Corruption 0% Temperature Cool (0) Movement Walking (260) Ox2 Location -10/Mines Parts ------- > --- POWER (1) -------- Ion Engine > --- PROPULSION (2) --- Aluminum Leg > --- UTILITY (2) ------ Large Storage Unit > --- WEAPON (2) ------- Mining Claw > --- INVENTORY (15) --- Heat Sink Medium Laser Assault Rifle Light Assault Rifle Peak State ------------ > --- POWER ------------ Ion Engine > --- PROPULSION ------- Aluminum Leg Aluminum Leg > --- UTILITY ---------- Large Storage Unit Light Armor Plating > --- WEAPON ----------- Medium Laser Light Assault Rifle > --- INVENTORY -------- Ion Engine Heat Sink EM Pulse Gun Mining Claw [Rating: 7] Favorites ----------- Power Ion Engine Engine Ion Engine Propulsion Aluminum Leg Leg Aluminum Leg Utility Large Storage Unit Storage Large Storage Unit Protection Light Armor Plating Weapon Light Assault Rifle Energy Gun EM Pulse Gun Ballistic Gun Light Assault Rifle Launcher Grenade Launcher Slashing Weapon Mining Claw Build | -11 -10 -10 ------- Run | Scr Mat Min Slots Evolved . | . . . Power . | . . . Propulsion . | . . . Utility . | . . . Weapon . | . . . Parts Attached 14 | 4 7 3 Power 2 | 1 . 1 Engine 2 | 1 . 1 Core . | . . . Reactor . | . . . Propulsion 4 | 2 2 . Treads . | . . . Leg 4 | 2 2 . Wheel . | . . . Hover . | . . . Flight . | . . . Utility 3 | . 3 . Device . | . . . Storage 2 | . 2 . Processor . | . . . Hackware . | . . . Protection 1 | . 1 . Artifact . | . . . Weapon 5 | 1 2 2 Energy Gun 2 | 1 1 . Energy Cannon . | . . . Ballistic Gun 1 | . 1 . Ballistic Cannon . | . . . Launcher 1 | . . 1 Special Weapon . | . . . Impact Weapon . | . . . Slashing Weapon 1 | . . 1 Piercing Weapon . | . . . Special Melee Weapon . | . . . Unidentified Prototypes . | . . . Parts Lost 5 | . 1 4 Power 1 | . . 1 Propulsion 2 | . 1 1 Utility 1 | . . 1 Weapon 1 | . . 1 Highest Loss Streak 3 | . 1 3 To Critical Strikes . | . . . Average Slot Usage (%) 86 | . 85 88 Engine 14 | . 14 14 Leg 23 | . 27 17 Storage 14 | . 14 14 Protection 5 | . 1 14 Energy Gun 10 | . 14 2 Ballistic Gun 10 | . 14 2 Launcher 3 | . . 11 Slashing Weapon 3 | . . 11 Naked Turns . | . . . Heaviest Build 33 | 7 31 33 Greatest Support 20 | 20 20 20 Greatest Overweight (x) 3 | . 2 3 Average Overweight (x) 1 | . . 2 Largest Inventory Capacity 15 | 5 15 15 Average Capacity 14 | 5 14 15 Most Carried 5 | 4 5 5 Average Carried 4 | 2 3 4 Final Capacity 15 | 5 15 15 Final Carried 5 | 4 5 4 Class Distribution -------------------- 100% | Mutant Dominant Class ---------------- Mutant | -10/Materials Mutant | -10/Mines Resources | -11 -10 -10 ----------- Run | Scr Mat Min Matter Collected 342 | 226 59 57 Remotely . | . . . Salvage Created 563 | . 516 47 Parts 23 | . 22 1 Haulers Intercepted . | . . . Recyclers Shooed . | . . . Parts Field Recycled . | . . . Retrieved Matter . | . . . Parts Self-Destructed . | . . . Prevented . | . . . Kills | -11 -10 -10 ------- Run | Scr Mat Min Combat Hostiles Destroyed 12 | . 8 4 Melee 2 | . . 2 Guns 6 | . 6 . AOE 4 | . 2 2 Classes Destroyed 5 | . 3 2 Recycler 3 | . 3 . Swarmer 3 | . 3 . Grunt 5 | . 5 . Sentry 2 | . . 2 Assembled 2 | . . 2 Best Kill Streak 5 | . 5 2 Combat Bots Only 3 | . 3 2 Max Kills in Single Turn 4 | . 4 1 Gunslinging . | . . . Exploded 1 | . 1 1 Melee 1 | . . 1 Uniques/NPCs Destroyed . | . . . Combat | -11 -10 -10 -------- Run | Scr Mat Min Damage Taken 986 | . 355 631 Core 251 | . 34 217 Absorbed by Shields . | . . . Regen/Repaired (Parts) 51 | . 51 . Core Remaining (%) 100 | 100 . . Volleys Fired 28 | . 19 9 Largest 2 | . 2 1 Hottest 60 | . 60 30 Shots Fired 47 | . 38 9 Gun 38 | . 38 . Cannon . | . . . Launcher 9 | . . 9 Special . | . . . Kinetic 19 | . 19 . Thermal . | . . . Explosive 9 | . . 9 Electromagnetic 19 | . 19 . Robot Hit Streak 13 | . 13 12 Robot Miss Streak 2 | . 2 . Penetration Max . | . . . Secondary Targets 1 | . 1 . Max Gunslinging Chain 1 | . 1 . Shots Hit Robots 37 | . 26 11 Core Hits 26 | . 19 7 Critical Kills . | . . . Critical Parts Destroyed . | . . . Critical Strikes . | . . . Melee Attacks 2 | . . 2 Impact . | . . . Slashing 2 | . . 2 Piercing . | . . . Sneak Attacks . | . . . Combat Hostiles . | . . . Follow-up Attacks . | . . . Damage Inflicted 1070 | . 807 263 Guns 288 | . 288 . Cannons . | . . . Explosions 725 | . 519 206 Melee 57 | . . 57 Ramming . | . . . Kinetic 96 | . 96 . Thermal 117 | . 117 . Explosive 608 | . 402 206 Electromagnetic 192 | . 192 . Impact . | . . . Slashing 57 | . . 57 Piercing . | . . . Highest Corruption . | . . . Average Corruption . | . . . Corruption Purged . | . . . Corruption Blocked . | . . . Overload Shots . | . . . Overflow Damage 6 | . 2 4 Projectiles . | . . . Explosions 2 | . 2 . Melee 4 | . . 4 Knockbacks . | . . . Impact . | . . . Kinetic . | . . . Secondary . | . . . Self-Inflicted Damage 211 | . 178 33 Shots 5 | . 3 2 Rammed . | . . . Targets Rammed . | . . . Kicked . | . . . Crushed . | . . . Highest Temperature 79 | . 79 18 Average Temperature 26 | . 30 11 Received Heat Transfer 165 | . 102 63 Siege Activations . | . . . Robots Corrupted . | . . . Combat Hostiles . | . . . Parts Fried . | . . . Impact Corruptions . | . . . Robots Melted . | . . . Combat Hostiles . | . . . Parts Melted . | . . . Heat Transferred 100 | . 100 . Parts Sabotaged . | . . . Parts Stolen . | . . . Parts Stripped . | . . . Power Chain Reactions 2 | . 2 . Missiles Intercepted . | . . . Alert | -11 -10 -10 ------- Run | Scr Mat Min Peak Influence 176 | . 176 102 Initial . | . . . Average 83 | . 102 59 Maximum Alert Level . | . . . Low Security (%) 100 | 100 100 100 Level 1 . | . . . Level 2 . | . . . Level 3 . | . . . Level 4 . | . . . Level 5 . | . . . High Security . | . . . Max Security . | . . . Squads Dispatched . | . . . Investigation . | . . . Extermination . | . . . Reinforcement . | . . . Assault . | . . . Garrison . | . . . Intercept . | . . . Searches Triggered . | . . . Construction Impeded . | . . . Haulers Reinforced . | . . . Active Scanning Responses . | . . . Cargo Convoy Interrupts . | . . . Stealth | -11 -10 -10 --------- Run | Scr Mat Min Distress Signals 1 | . 1 . Communications Jammed . | . . . Distress Signals . | . . . Times Spotted 38 | . 14 24 Peak Tracking Total 20 | . 6 20 Tactical Retreats . | . . . Traps | -11 -10 -10 ------- Run | Scr Mat Min Traps Triggered . | . . . Indirectly . | . . . Trap Hack Attempts . | . . . Triggered . | . . . Disarmed . | . . . Reprogrammed . | . . . Reused . | . . . Traps Extracted . | . . . Installed . | . . . Triggered . | . . . Machines | -11 -10 -10 ---------- Run | Scr Mat Min Machines Disabled 4 | . 2 2 Max in Single Turn 2 | . 2 2 Machines Sabotaged . | . . . Garrisons Compromised . | . . . Overloaded Fab Kills . | . . . Hacking | -11 -10 -10 --------- Run | Scr Mat Min Machines Accessed 4 | . 4 . Terminals 3 | . 3 . Fabricators . | . . . Repair Stations 1 | . 1 . Recycling Units . | . . . Scanalyzers . | . . . Garrison Access . | . . . Total Hacks 11 | . 11 . Successful 9 | . 9 . Failed 2 | . 2 . Catastrophic . | . . . Database Lockouts . | . . . Manual . | . . . Terminals 8 | . 8 . Fabricators . | . . . Repair Stations 3 | . 3 . Recycling Units . | . . . Scanalyzers . | . . . Garrison Access . | . . . Terminal Hacks 7 | . 7 . Record 3 | . 3 . Alert Level 2 | . 2 . Unreport Threat 1 | . 1 . Locate Traps 1 | . 1 . Fabricator Hacks . | . . . Repair Station Hacks 2 | . 2 . Scan Component 1 | . 1 . Repair 1 | . 1 . Recycling Unit Hacks . | . . . Scanalyzer . | . . . Garrison Access Hacks . | . . . Unauthorized Hacks . | . . . Terminals . | . . . Fabricators . | . . . Repair Stations . | . . . Recycling Units . | . . . Scanalyzers . | . . . Garrison Access . | . . . Data Cores Recovered . | . . . Used . | . . . Hacking Detections 3 | . 3 . Full Trace Events . | . . . Feedback Events . | . . . Feedback Blocked . | . . . Robot Schematics Acquired . | . . . Robots Built . | . . . Authchips . | . . . Time . | . . . Total Robot Build Rating . | . . . Part Schematics Acquired . | . . . Parts Built . | . . . Authchips . | . . . Time . | . . . Total Part Build Rating . | . . . Parts Repaired 1 | . 1 . Time 26 | . 26 . Parts Recycled . | . . . Recycled Matter . | . . . Retrieved Matter . | . . . Retrieved Components . | . . . Parts Scanalyzed . | . . . Part Schematics Acquired . | . . . Parts Damaged . | . . . Bothacking | -11 -10 -10 ------------ Run | Scr Mat Min Used RIF Installer . | . . . Robots Hacked . | . . . Non-combat . | . . . Combat . | . . . Robot Hacks Applied . | . . . Relay Couplers Released . | . . . Fabnet Peak Effective % . | . . . Robots Rewired . | . . . Allies Hacked . | . . . Hacks Repelled . | . . . Allies | -11 -10 -10 -------- Run | Scr Mat Min Total Allies . | . . . Largest Group . | . . . Highest-Rated Group . | . . . Highest-Rated Ally . | . . . Total Orders . | . . . Ally Attacks . | . . . Total Damage . | . . . Kills . | . . . Allies Corrupted . | . . . Allies Melted . | . . . Intel | -11 -10 -10 ------- Run | Scr Mat Min Robot Analysis Total . | . . . Derelict Logs Recovered 1 | . . 1 Drone Launches . | . . . Drone Recoveries . | . . . Exploration | -11 -10 -10 ------------- Run | Scr Mat Min Turns Passed 1418 | 66 866 486 Spaces Moved 612 | 56 393 163 Core 18 | 18 . . Treads . | . . . Legs 594 | 38 393 163 Wheels . | . . . Hover . | . . . Flight . | . . . Fastest Speed 50 | 50 120 190 Average Speed 203 | 97 186 281 Slowest Speed 330 | 120 260 330 Overloaded Moves . | . . . Propulsion Burnouts . | . . . Robots Hopped . | . . . Cave-ins Triggered . | . . . Exploration Rate (%) 35 | 4 64 38 Regions Visited 2 Branch Regions 1 Pre-discovered Areas 1 | . . 1 Known Exits Taken . | . . . Unknown Exits Taken 2 | 1 1 . Scrap Searched 1 | . . 1 Spaces Dug . | . . . Terrain Destroyed 54 | . 32 22 Melee . | . . . Projectile . | . . . AOE 54 | . 32 22 Terrain Rammed . | . . . Walls Destroyed . | . . . Machines Disabled . | . . . Actions | -11 -10 -10 --------- Run | Scr Mat Min Total 738 | 67 494 177 Wait 65 | . 65 . Move 610 | 55 392 163 Hop . | . . . Pick Up 16 | 8 8 . Fast Attach . | . . . Attach 11 | 4 6 1 Detach 1 | . 1 . Swap 3 | . 1 2 Drop 2 | . 2 . Fire 28 | . 19 9 Melee 2 | . . 2 Ram . | . . . Kick . | . . . Crush . | . . . Escape Stasis . | . . . Rewire . | . . . Trap . | . . . Miscellaneous . | . . . Route ------- -11/Scrapyard -10/Materials -10/Mines (discovered 1 exit: [*Mat]) History --------- Turn | Location | Event 9 | -11/Scrapyard | Discovered new exit (range 13) 67 | -11/Scrapyard | Entered Materials 308 | -10/Materials | Build established: Mutant 601 | -10/Materials | Repaired Aluminum Leg 889 | -10/Materials | Discovered new exit (range 7) 933 | -10/Materials | Entered Mines 952 | -10/Mines | Learned location of Mines (-8) 977 | -10/Mines | Discovered new exit (range 10) 1395 | -10/Mines | Assembled infested the area 1400 | -10/Mines | Assisted by a Guerilla fighting off Assembled 1411 | -10/Mines | Core integrity fell below 50% 1418 | -10/Mines | Core integrity fell below 20% 1419 | -10/Mines | Destroyed by D-53 Grenadier with Mini Grenade Launcher Last Messages --------------- 01410_ as-74676 destroyed. 01411_ HV Slug penetrates as-33632. 01411_ Grenade Launcher destroyed. 01411_ as-59626 destroyed. 01411_ Lgt. Armor Plating destroyed. 01411_ as-85544 destroyed. 01411_ as-25913 destroyed. 01411_ as-09816 destroyed. 01412_ Destroyed Asb. Hover Unit. 01412_ as-19886 destroyed. 01412_ XU-QD0(h) system corrupted by crushing effect. 01413_ XU-QD0(h) system terminally corrupted. 01413_ Ion Engine destroyed. 01413_ as-76929 destroyed. 01413_ as-24506 destroyed. 01413_ as-45193 destroyed. 01413_ as-82775 destroyed. 01415_ The unstable cave ceiling collapses. 01415_ as-18430 destroyed. 01417_ as-33632 destroyed. Map ----- +----------------------------------------------------+ | | | | | | | | | | | | | | | | | ?????????????????????????????????????????????????? | | ?????????????????????????????????????????????????? | | ?????????????????????????????????????????????????? | | #????????????????????????????????????????????????? | | #????????????###??????????????????? ?????????????? | | #######????## ##???????????????#? "????????????? | | #???## ##?????????????;## #????????????? | | ! #???# #????????????# ##???????????? | | #### #???# #???????????# ##??????????? | | ???# #???# #?????####?## ???????????? | | ???# #???# #??###### ## % % ????????????? | | #### ##### #?## ! ### % ??????????????? | | ### # %#???????????????? | | #### ## #????????????????? | | #??###### ### #?????????????????? | | #???????## ## ##?????????????????? | | #####????### #?????????????????? | | # ######### t @ ##?????????????????? | | |! ### #?????????????????? | | ! #### ## d ##?????????????????? | | ## ##### # d ##??????????????????? | | ?##### # ##???????????????????? | | ?????# % ##########????????????????????? | | ?????# ### # #??????????????????????????????? | | ?????# #?# ## ##???????????????????????????????? | | ?????# #?# ######????????????????????????????????? | | ?????# #?# #?????????????????????????????????????? | | ###### ### #?????????????????????????????????????? | | ##????????????????????????????????????? | | ##???????????????????????????????????? | | #### < #???????????????????????????????????? | | ???## #???????????????????????????????????? | | ????## ##???????????????????????????????????? | | ?????### #????????????????????????????????????? | | ???????## #????????????????????????????????????? | | ????????# #????????????????????????????????????? | | ???????# ##????????????????????????????????????? | | ???????# ##?????????????????????????????????????? | | ???????####??????????????????????????????????????? | | ?????????????????????????????????????????????????? | | ?????????????????????????????????????????????????? | | ?????????????????????????????????????????????????? | +----------------------------------------------------+ Best States ------------- Heat Dissipation 25 Energy Generation 10 Energy Capacity 250 Matter Stores 300 Matter Capacity 300 Sight Range 16 Terrain Scan Density 10 Armor Coverage 150 Resistance: KI 20 Resistance: TH 20 Resistance: EX 20 Resistance: EM 20 Resistance: I 20 Resistance: S 20 Resistance: P 20 Evasion (%) 55 Offensive Hacking 10 Item Schematics ----------------- None Robot Schematics ------------------ None Fabricated ------------ Nothing Alien Tech Used ----------------- None Achievements -------------- None Challenges ------------ None Game ------ Seed LongswordDataGenerator Manual? 1 Play Time 00:22:33 Cumulative 13.7 hours Start 2022.12.01 @ 22:48:14 End 2022.12.01 @ 23:14:09 Sessions 1 Manual Loads 0 Difficulty Adventurer Special Mode None Game No. 22 Rogue 12 Adventurer 2 Explorer 8 Win Type - Total 0 Types 0/0/0/0/0/0/0/0/0 Lore% 5 Gallery% 19 Achievement% 18 Wizard Run 0 Options --------- ASCII 0 Keyboard 0 Movement Mouse Keybinds 0 Fullscreen 1 Font 24/Smallcaps Map View 113x50 Tactical HUD 1 Map Filters NONE Filters NONE Steam 1 RUN: 16b092ac-8e3d-429c-aefd-4c630872df0b